Cogmind - Beta 15 @@@ ROGUE MODE // 2025.09.06 @ 18:08:06 Player: Zaros426 Result: Destroyed by Y-54 Guardian with Gatling Laser Performance ------------- Evolutions (0) 0 Regions Visited (4) 800 Robots Destroyed (60) 300 Value Destroyed (1613) 1613 Prototype IDs (11) 220 Alien Tech Used (0) 0 Bonus (24) 24 TOTAL SCORE: 2957 Bonus ------- High Alert Combat Kills 24 Cogmind --------- Core Integrity 0/250 Matter 272/300 Energy 126/200 System Corruption 2% Temperature Warm (171) Movement Core (300) Ox5 Location -7/Recycling Parts ------- > --- POWER (1) -------- Subdweller Power Source > --- PROPULSION (2) --- (None) > --- UTILITY (2) ------ (None) > --- WEAPON (2) ------- Subdweller Beam Cannon Subdweller Machine Gun > --- INVENTORY (5) ---- Arachnoskeleton High-capacity Matter Pod (200) Subdweller Optics Peak State ------------ > --- POWER ------------ Subdweller Power Source > --- PROPULSION ------- Light Treads Subdweller Monowheel > --- UTILITY ---------- Light Humpback > --- WEAPON ----------- Subdweller Machine Gun Makeshift Spear > --- INVENTORY -------- Ion Engine Subdweller Power Source Subdweller Power Source Arachnoskeleton Subdweller Monowheel Subdweller Monowheel Subdweller Monowheel High-capacity Matter Pod Machine Analyzer Subdweller Optics Subdweller Optics Subdweller Optics Seismic Detector Hacking Suite Subdweller Laser Subdweller Laser Subdweller Beam Cannon Subdweller Machine Gun Subdweller Machine Gun Rocket Launcher Mini Grenade Launcher Datajack [Rating: 19] Favorites ----------- Power Subdweller Power Source Engine Subdweller Power Source Propulsion Light Treads Treads Light Treads Wheel Subdweller Monowheel Utility Light Humpback Device Seismic Detector Storage Light Humpback Processor Targeting Computer Weapon Subdweller Machine Gun Energy Gun Subdweller Laser Energy Cannon Subdweller Beam Cannon Ballistic Gun Subdweller Machine Gun Launcher Mini Grenade Launcher Special Weapon Mining Laser Piercing Weapon Makeshift Spear Special Melee Weapon Datajack Build | -11 -10 -10 -10 -7 ------- Run | Yrd Mat Min Sub Rec Slots Evolved . | . . . . . Power . | . . . . . Propulsion . | . . . . . Utility . | . . . . . Weapon . | . . . . . Parts Attached 29 | 6 7 1 14 1 Power 4 | 1 . . 2 1 Engine 4 | 1 . . 2 1 Core . | . . . . . Reactor . | . . . . . Propulsion 10 | 2 3 . 5 . Treads 5 | 2 3 . . . Leg . | . . . . . Wheel 5 | . . . 5 . Hover . | . . . . . Flight . | . . . . . Utility 4 | 1 1 . 2 . Device 2 | 1 . . 1 . Storage 1 | . . . 1 . Processor 1 | . 1 . . . Hackware . | . . . . . Protection . | . . . . . Artifact . | . . . . . Weapon 11 | 2 3 1 5 . Energy Gun 1 | . . . 1 . Energy Cannon 1 | . . . 1 . Ballistic Gun 4 | 2 . . 2 . Ballistic Cannon . | . . . . . Launcher 2 | . 2 . . . Special Weapon 1 | . 1 . . . Impact Weapon . | . . . . . Slashing Weapon . | . . . . . Piercing Weapon 1 | . . . 1 . Special Melee Weapon 1 | . . 1 . . Unidentified Prototypes . | . . . . . Parts Lost 6 | . . 1 1 4 Power . | . . . . . Propulsion 4 | . . . 1 3 Utility 1 | . . . . 1 Weapon 1 | . . 1 . . Highest Loss Streak 4 | . . 1 1 4 To Critical Strikes . | . . . . . Average Backups 12 | 3 4 4 15 21 Power 1 | 1 1 1 1 1 Propulsion 1 | . . . 2 3 Utility 4 | . . 1 5 8 Weapon 4 | 1 2 2 4 5 Tool/Special . | . . . . . Unused Backups 27 | 1 3 . 2 21 Power 3 | . 1 . . 2 Propulsion 3 | . . . . 3 Utility 13 | 1 1 . . 11 Weapon 8 | . 1 . 2 5 Tool/Special . | . . . . . Average Slot Usage (%) 82 | . 79 82 83 84 Engine 8 | . . . 11 14 Treads 19 | . 28 28 16 6 Wheel 8 | . . . 11 21 Device 5 | . 14 14 2 . Storage 8 | . . . 11 13 Processor 5 | . 12 14 2 . Energy Cannon 2 | . . . 2 14 Ballistic Gun 12 | . 14 9 12 14 Launcher 2 | . 4 9 1 . Special Weapon 1 | . 4 2 . . Piercing Weapon 5 | . . . 8 . Special Melee Weapon 1 | . . 3 1 . Peak Build Rating 19 | 5 8 7 19 19 Average Rating 12 | 3 5 6 15 18 On Entrance 7 | . 4 6 7 18 Naked Turns . | . . . . . Heaviest Build 57 | 5 6 5 57 57 Greatest Support 40 | 40 3 3 20 40 Greatest Overweight (x) 2 | 1 1 1 2 2 Average Overweight (x) . | . . . 1 1 Largest Inventory Capacity 25 | 5 5 5 25 25 Average Capacity 16 | 5 5 5 21 24 Most Carried 25 | 5 5 5 25 25 Average Carried 13 | 3 4 4 17 23 Final Capacity 25 | 5 5 5 25 5 Final Carried 23 | 5 5 5 23 5 Class Distribution -------------------- 96% | Mutant 3% | Scavenger-Mutant Dominant Class ---------------- Mutant | -10/Materials Mutant | -10/Mines Mutant | -10/Subcaves Scavenger-Mutant | -7/Recycling Resources | -11 -10 -10 -10 -7 ----------- Run | Yrd Mat Min Sub Rec Matter Collected 1452 | 314 321 117 690 10 Remotely . | . . . . . Salvage Created 1634 | 154 446 98 692 244 Parts 106 | 11 38 4 48 5 Haulers Intercepted 2 | . 2 . . . Recyclers Shooed 1 | 1 . . . . Parts Field Recycled . | . . . . . Retrieved Matter . | . . . . . Parts Self-Destructed 12 | . . . 12 . Prevented . | . . . . . Kills | -11 -10 -10 -10 -7 ------- Run | Yrd Mat Min Sub Rec Combat Hostiles Destroyed 43 | . 14 5 21 3 Melee 9 | . . . 9 . Guns 2 | . 1 . 1 . Cannons 4 | . . . 1 3 AOE 27 | . 13 5 9 . Classes Destroyed 13 | 2 7 . 2 2 Worker 1 | . 1 . . . Builder 1 | . 1 . . . Tunneler 5 | 4 1 . . . Hauler 2 | . 2 . . . Recycler 3 | 1 . 1 . 1 Operator 2 | . 2 . . . Watcher 3 | . 3 . . . Swarmer 13 | . 6 3 4 . Grunt 13 | . 8 2 3 . Duelist 1 | . . . . 1 Sentry 2 | . . . 1 1 Programmer 1 | . . . . 1 Subdweller 13 | . . . 13 . Best Kill Streak 8 | 5 8 3 4 4 Combat Bots Only 4 | . 4 3 4 3 Max Kills in Single Turn 3 | 1 3 3 3 1 Gunslinging . | . . . . . Exploded 3 | . 3 3 3 . Melee 1 | . . . 1 . Uniques/NPCs Destroyed . | . . . . . Combat | -11 -10 -10 -10 -7 -------- Run | Yrd Mat Min Sub Rec Hostile Shots Fired 160 | . 25 13 51 71 Missed 66 | . 11 7 15 33 Hits 94 | . 14 6 36 38 Melee 4 | . . . . 4 Projectile 90 | . 14 6 36 34 Critical Strikes 1 | . . . 1 . Damage Taken 1307 | . 157 69 641 440 Core 253 | . 7 8 109 129 Absorbed by Shields . | . . . . . Core Remaining (%) 100 | 100 . . . . Volleys Fired 68 | 9 30 5 15 9 Largest 2 | 2 2 1 2 2 Hottest 110 | 40 100 30 110 110 Shots Fired 103 | 18 41 5 21 18 Gun 58 | 18 23 . 8 9 Cannon 14 | . . . 5 9 Launcher 28 | . 15 5 8 . Special 3 | . 3 . . . Kinetic 58 | 18 23 . 8 9 Thermal 17 | . 3 . 5 9 Explosive 28 | . 15 5 8 . Electromagnetic . | . . . . . Robot Hit Streak 16 | 3 16 1 7 14 Robot Miss Streak 4 | 2 2 2 4 2 Penetration Max . | . . . . . Secondary Targets . | . . . . . Shots Hit Robots 71 | 8 19 1 29 14 Core Hits 73 | 5 32 9 22 5 Critical Kills 1 | . . . 1 . Critical Parts Destroyed . | . . . . . Critical Strikes 2 | . . . 2 . Meltdown 1 | . . . 1 . Impale 1 | . . . 1 . Melee Attacks 78 | . . . 78 . Impact . | . . . . . Slashing . | . . . . . Piercing 78 | . . . 78 . Sneak Attacks . | . . . . . Combat Hostiles . | . . . . . Follow-up Attacks . | . . . . . Damage Inflicted 3598 | 102 1279 517 1316 384 Guns 565 | 102 174 . 91 198 Cannons 267 | . . . 81 186 Explosions 2172 | . 1105 517 550 . Melee 594 | . . . 594 . Ramming . | . . . . . Kinetic 565 | 102 174 . 91 198 Thermal 504 | . . 237 81 186 Explosive 1908 | . 1078 280 550 . Electromagnetic 27 | . 27 . . . Impact . | . . . . . Slashing . | . . . . . Piercing 594 | . . . 594 . Highest Corruption 2 | . 1 1 1 2 Average Corruption 1 | . 1 1 1 1 Corruption Purged . | . . . . . Corruption Blocked . | . . . . . Effects 26 | . 4 . 19 3 Message Errors 10 | . 1 . 8 1 Matter Fused 8 | . 2 . 6 . Heat Flow Errors 2 | . . . 1 1 Energy Discharges 3 | . 1 . 1 1 Data Loss (minor) 1 | . . . 1 . Data Loss (major) 1 | . . . 1 . Alerts 1 | . . . 1 . Overload Shots . | . . . . . Overflow Damage 84 | . 20 27 10 27 Projectiles 27 | . . . . 27 Explosions 57 | . 20 27 10 . Melee . | . . . . . Knockbacks . | . . . . . Impact . | . . . . . Kinetic . | . . . . . Secondary . | . . . . . Self-Inflicted Damage 12 | . 12 . . . Shots 1 | . 1 . . . Rammed . | . . . . . Targets Rammed . | . . . . . Kicked . | . . . . . Crushed . | . . . . . Highest Temperature 195 | . . . 170 195 Average Temperature 87 | . . . 69 91 Received Heat Transfer 270 | . 54 9 117 90 Siege Activations . | . . . . . Martial Activations . | . . . . . Shielding Activations . | . . . . . Robots Disrupted . | . . . . . Combat Hostiles . | . . . . . Robots Corrupted . | . . . . . Combat Hostiles . | . . . . . Parts Fried . | . . . . . Impact Corruptions . | . . . . . Robots Melted 1 | . . . 1 . Combat Hostiles 1 | . . . 1 . Parts Melted 1 | . . . 1 . Heat Transferred 633 | . . 300 111 222 Parts Sabotaged . | . . . . . Parts Stolen . | . . . . . Parts Stripped . | . . . . . Power Chain Reactions . | . . . . . Alert | -11 -10 -10 -10 -7 ------- Run | Yrd Mat Min Sub Rec Maximum Alert Level 2 | . 2 1 . . Low Security (%) 55 | 100 32 67 . 100 Level 1 22 | . 26 32 . . Level 2 21 | . 40 . . . Level 3 . | . . . . . Level 4 . | . . . . . Level 5 . | . . . . . High Security . | . . . . . Max Security . | . . . . . Peak Influence 499 | 15 499 312 . 63 Initial 166 | . 3 166 . 13 Average 204 | 4 286 191 . 25 Influence Increases 1611 | 25 802 336 260 188 Destroy 0b10 Robot/C 600 | . 280 100 160 60 Destroy 0b10 Robot/NC 85 | 25 50 5 . 5 Destroy Leader 100 | . 70 20 10 . Successful Hack 31 | . 31 . . . Select Force Hacks 180 | . 60 . . 120 Disable Machine 195 | . 75 120 . . Destroy Structure 150 | . 101 46 . 3 Partial Spotted 15 | . 15 . . . Lose Combat Pursuer 255 | . 120 45 90 . Influence Decreases 1591 | 20 378 471 525 197 Entered New Map 435 | . 2 263 154 16 Time Decay 1103 | 20 376 198 361 148 Lost Part 53 | . . 10 10 33 Squads Dispatched 5 | . 5 . . . Investigation 5 | . 5 . . . Extermination . | . . . . . Reinforcement . | . . . . . Assault . | . . . . . Garrison . | . . . . . Intercept . | . . . . . Searches Triggered . | . . . . . Construction Impeded . | . . . . . Haulers Reinforced . | . . . . . Active Scanning Responses . | . . . . . Cargo Convoy Interrupts . | . . . . . Stealth | -11 -10 -10 -10 -7 --------- Run | Yrd Mat Min Sub Rec Distress Signals 3 | . 3 . . . Communications Jammed . | . . . . . Distress Signals . | . . . . . Times Spotted 70 | . 32 7 23 8 Peak Tracking Total 7 | . 5 3 6 7 Tactical Retreats 8 | . 4 1 3 . Traps | -11 -10 -10 -10 -7 ------- Run | Yrd Mat Min Sub Rec Traps Triggered 2 | . 2 . . . Indirectly . | . . . . . Trap Hack Attempts . | . . . . . Triggered . | . . . . . Disarmed . | . . . . . Reprogrammed . | . . . . . Reused . | . . . . . Traps Extracted . | . . . . . Installed . | . . . . . Triggered . | . . . . . Machines | -11 -10 -10 -10 -7 ---------- Run | Yrd Mat Min Sub Rec Machines Disabled 14 | . 5 8 1 . Max in Single Turn 8 | . 2 8 1 . Machines Repaired . | . . . . . Machines Dismantled . | . . . . . Machines Sabotaged . | . . . . . Overloaded Fab Kills . | . . . . . Hacking | -11 -10 -10 -10 -7 --------- Run | Yrd Mat Min Sub Rec Machines Accessed 16 | . 10 . 2 4 Terminals 8 | . 8 . . . Fabricators . | . . . . . Repair Stations . | . . . . . Recycling Units 6 | . 2 . . 4 Scanalyzers . | . . . . . Garrison Access . | . . . . . Total Hacks 48 | . 28 . 14 6 Successful 33 | . 15 . 14 4 Failed 15 | . 13 . . 2 Catastrophic 1 | . 1 . . . Database Lockouts . | . . . . . Manual 31 | . 25 . . 6 Terminals 26 | . 26 . . . Fabricators . | . . . . . Repair Stations . | . . . . . Recycling Units 8 | . 2 . . 6 Scanalyzers . | . . . . . Garrison Access . | . . . . . Terminal Hacks 17 | . 3 . 14 . Record 13 | . . . 13 . Robot Analysis 2 | . 2 . . . Recall Reinforcements 1 | . 1 . . . Proto ID Catalog 1 | . . . 1 . Fabricator Hacks . | . . . . . Repair Station Hacks . | . . . . . Recycling Unit Hacks . | . . . . . Scanalyzer . | . . . . . Garrison Access Hacks . | . . . . . Unauthorized Hacks 16 | . 12 . . 4 Terminals 10 | . 10 . . . Assimilate 2 | . 2 . . . Botnet 2 | . 2 . . . Operators 1 | . 1 . . . Skim 5 | . 5 . . . Fabricators . | . . . . . Repair Stations . | . . . . . Recycling Units 6 | . 2 . . 4 Tunnel 6 | . 2 . . 4 Scanalyzers . | . . . . . Garrison Access . | . . . . . Data Cores Recovered 1 | . 1 . . . Used 1 | . 1 . . . Hacking Detections 8 | . 7 . . 1 Full Trace Events 1 | . 1 . . . Feedback Events 1 | . 1 . . . Corruption 1 | . 1 . . . Feedback Blocked . | . . . . . Robot Schematics Acquired . | . . . . . Robots Built . | . . . . . Authchips . | . . . . . Time . | . . . . . Total Robot Build Rating . | . . . . . Part Schematics Acquired . | . . . . . Parts Built . | . . . . . Authchips . | . . . . . Time . | . . . . . Total Part Build Rating . | . . . . . Parts Repaired . | . . . . . Time . | . . . . . Parts Recycled . | . . . . . Recycled Matter . | . . . . . Retrieved Matter . | . . . . . Retrieved Components . | . . . . . Parts Scanalyzed . | . . . . . Part Schematics Acquired . | . . . . . Parts Damaged . | . . . . . Bothacking | -11 -10 -10 -10 -7 ------------ Run | Yrd Mat Min Sub Rec Used RIF Installer . | . . . . . Robots Hacked . | . . . . . Non-combat . | . . . . . Combat . | . . . . . Robot Hacks Applied . | . . . . . Relay Couplers Released . | . . . . . Fabnet Peak Effective % . | . . . . . Robots Rewired . | . . . . . Allies Hacked . | . . . . . Hacks Repelled . | . . . . . Allies | -11 -10 -10 -10 -7 -------- Run | Yrd Mat Min Sub Rec Total Allies . | . . . . . Largest Group . | . . . . . Highest-Rated Group . | . . . . . Highest-Rated Ally . | . . . . . Total Orders . | . . . . . Ally Attacks . | . . . . . Total Damage . | . . . . . Kills . | . . . . . Allies Corrupted . | . . . . . Allies Melted . | . . . . . Intel | -11 -10 -10 -10 -7 ------- Run | Yrd Mat Min Sub Rec Active Infowar (turns) 1861 | 8 952 413 488 . Seismic 1861 | 8 952 413 488 . Robot Analysis Total 2 | . 2 . . . Derelict Logs Recovered 1 | . . 1 . . Drone Launches . | . . . . . Drone Recoveries . | . . . . . Exploration | -11 -10 -10 -10 -7 ------------- Run | Yrd Mat Min Sub Rec Turns Passed 4741 | 89 952 413 2980 307 Spaces Moved 3806 | 60 1153 652 1724 217 Core 2355 | 54 1153 652 496 . Treads 381 | 6 . . 375 . Legs . | . . . . . Wheels 1070 | . . . 853 217 Hover . | . . . . . Flight . | . . . . . Fastest Speed 50 | 50 50 50 50 110 Average Speed 107 | 71 61 60 155 123 Slowest Speed 320 | 160 100 100 320 130 Overloaded Moves . | . . . . . Propulsion Burnouts . | . . . . . Robots Hopped . | . . . . . Potential Cave-ins . | . . . . . Cave-ins Triggered . | . . . . . Exploration Rate (%) 60 | 3 99 98 74 29 Regions Visited 4 Branch Regions 3 Pre-discovered Areas 9 | . 4 . 1 4 Known Exits Taken 3 | . 1 1 1 . Unknown Exits Taken 1 | 1 . . . . Scrap Searched 5 | . . 2 3 . Spaces Dug 9 | . 1 . 8 . Terrain Destroyed 213 | . 107 44 59 3 Melee 8 | . . . 8 . Projectile 6 | . 3 . . 3 AOE 199 | . 104 44 51 . Terrain Rammed . | . . . . . Walls Destroyed . | . . . . . Machines Disabled . | . . . . . Actions | -11 -10 -10 -10 -7 --------- Run | Yrd Mat Min Sub Rec Total 4260 | 86 1349 664 1921 240 Wait 158 | 3 123 4 28 . Move 3802 | 59 1152 651 1723 217 Hop . | . . . . . Pick Up 52 | 6 6 1 33 6 Fast Attach 8 | 5 2 . 1 . Attach 13 | 1 5 1 5 1 Detach 6 | 1 5 . . . Swap 40 | . 17 2 18 3 Drop 35 | 2 9 . 20 4 Fire 68 | 9 30 5 15 9 Melee 78 | . . . 78 . Ram . | . . . . . Kick . | . . . . . Crush . | . . . . . Escape Stasis . | . . . . . Rewire . | . . . . . Trap . | . . . . . Miscellaneous . | . . . . . Route ------- -11/Scrapyard -10/Materials (discovered 6 exits: [*Mat x3] / *Min x2 / Sub) -10/Mines (discovered 3 exits: [*Mat x2] / *Sub) -10/Subcaves (discovered 3 exits: *Mat x2 / *Rec) -7/Recycling (discovered 1 exit: Fac) History --------- Turn | Location | Event 22 | -11/Scrapyard | Discovered new exit (range 15) 90 | -11/Scrapyard | Entered Materials 182 | -10/Materials | Discovered new exit (range 14) 215 | -10/Materials | Discovered new exit (range 10) 311 | -10/Materials | Build established: Mutant 318 | -10/Materials | Discovered new exit (range 16) 347 | -10/Materials | Discovered new exit (range 6) 697 | -10/Materials | Identified exit to Subcaves 754 | -10/Materials | Discovered new exit (range 4) 802 | -10/Materials | Learned 2 Mines zone layouts 839 | -10/Materials | Learned 2 Storage zone layouts 892 | -10/Materials | Identified exit to Mines 909 | -10/Materials | Learned location of 2 exits from Subcaves 935 | -10/Materials | Learned location of 1 exit from Recycling 1019 | -10/Materials | Learned location of Mines (-9) 1042 | -10/Materials | Entered Mines 1049 | -10/Mines | Received a Rocket Launcher from a helpful Derelict 1079 | -10/Mines | Discovered new exit (range 14) 1159 | -10/Mines | Learned 4 Materials zone layouts 1316 | -10/Mines | Discovered new exit (range 14) 1350 | -10/Mines | Discovered exit to Subcaves (range 15) 1455 | -10/Mines | Entered Subcaves 1456 | -10/Subcaves | Approached by a straggling Scientist 1456 | -10/Subcaves | Identified exit to Materials 1456 | -10/Subcaves | Identified exit to Recycling 1495 | -10/Subcaves | Shifting Twisted Machinery released Sub. Machine Gun 1496 | -10/Subcaves | Shifting Twisted Machinery released Mak. Spear 1922 | -10/Subcaves | A Subdweller sparked back to life 1922 | -10/Subcaves | A Subdweller sparked back to life 1922 | -10/Subcaves | A Subdweller sparked back to life 1947 | -10/Subcaves | Found Prototype Leg 2224 | -10/Subcaves | Learned location of Zion (-6) 2224 | -10/Subcaves | Met a Zionite searching for "candidates" 2765 | -10/Subcaves | Visited Clippyterm 2774 | -10/Subcaves | Learned Factory trap positions 3029 | -10/Subcaves | A swath of the cavern ceiling suddenly collapsed 3104 | -10/Subcaves | Discovered exit to Materials (range 5) 3995 | -10/Subcaves | Visited 4L-MR0's lab 4018 | -10/Subcaves | Identified Arachnoskeleton 4027 | -10/Subcaves | Found Power Bank 4435 | -10/Subcaves | Entered Recycling 4436 | -7/Recycling | Identified exit to Factory 4727 | -7/Recycling | Core integrity fell below 50% 4740 | -7/Recycling | Core integrity fell below 20% 4742 | -7/Recycling | Destroyed by Y-54 Guardian with Gatling Laser Last Messages --------------- 04719_ R-06 Scavenger collects Imp. Deuterium Engine. 04720_ R-06 Scavenger collects Tractor Beam. 04724_ R-06 Scavenger collects Flak Gun. 04724_ Destroyed Imp. Heat Sink. 04724_ P-60 Hacker destroyed. 04725_ R-06 Scavenger collects Welding Torch. 04726_ R-06 Scavenger destroyed. 04730_ Lgt. Treads destroyed. 04733_ R-06 Scavenger collects Sml. Storage Unit. 04734_ Lgt. Humpback destroyed. 04736_ Penetrated by Slug. 04737_ R-06 Scavenger collects Flak Gun. 04738_ R-06 Scavenger collects Lgt. Ion Engine. 04738_ U-05 Engineer builds a Door. 04740_ Slug penetrates Wall. 04740_ Sub. Monowheel destroyed. 04740_ R-06 Scavenger collects Com. Wheel. 04740_ U-05 Engineer builds a Wall. 04741_ Sub. Monowheel destroyed. 04742_ L-41 Fighter destroyed. Map ----- +----------------------------------------------------+ | ?????????????????????????????????????????????????? | | ?????????????????????????????????????????????????? | | ?????????????????????????????????????????????????? | | ?????????????????????????????????????????????????? | | ?????????????????????????????????????????????????? | | ?????????????????????????????????????????????????? | | ????????????????????????? ???????????????????????? | | ?????????????????????? ?? ???????????????????????? | | ??????????????????? ! ? ???????????????????????? | | ??????????????????? ? ? +??????????????????????? | | ???????????????????? !? ? #??????????????????????? | | ???????????????????? ]% ? #??????????????????????? | | ????????????????????? ? #??????????????????????? | | ????????????????????? % #Y#??????????????????????? | | ????????????????????##+## #??????????????????????? | | ?????????????????????u r #??????????????????????? | | ????????????????????##YYhY#??????????????????????? | | ????????????????????# r ##?????????????????????? | | ?????????????????###?#%r ??????????????????????? | | ??????????????#### #?# % ##?????????????????????? | | ??????????????# #?#r ;#?????????????????????? | | ??????????????# #?# =#??????????????????????? | | ??????????????# #?# /*!##?????????????????????? | | ??????????????# ### !!!%#?????????????????????? | | ??????????????# !+ !!!/#??????????????????????? | | ?????????????## ####*[@#######????????????????? | | ???#########?# #??#[]]! #????????????????? | | ???# ### #??# [ #????????????????? | | ???# #?# #### #????????????????? | | ???# ! !#?# ##"" ##????????????????? | | ???# #?# ##"Y #?????????????????? | | ???# #?# ##"" #?????????????????? | | ???# ! #?# !#### #?????????????????? | | ???# #####+##### #?????????????????? | | ???# # #?????????????????? | | ???# + #?????????????????? | | ???# ! # #?????????????????? | | ???# ! # ###/##### #?????????????????? | | ???# ! # ## ??## ###+########??????????? | | ???# ! !# ## #??# ### #??????????? | | ???# # ## #??# ""# #??????????? | | ???# ! # ## #??# Y"# % ! #??????????? | | ???# # ## #??# ""# #??????????? | | ???# ! # ## #??# ### #??????????? | | ???# # ## #??# #?# #??????????? | | ???########## # #??# #?#% #??????????? | | ????????????# ## #??# #?# #??????????? | | ????????????# ## #??# #?#% #??????????? | | ????????????# ## #??# #?##########??????????? | | ????????????# ## #??# #?????????????????????? | +----------------------------------------------------+ Best States ------------- Heat Dissipation 25 Energy Generation 15 Energy Capacity 200 Matter Stores 300 Matter Capacity 300 Sight Range 16 Terrain Scan Density 10 Evasion (%) 50 Targeting Accuracy 5 Recoil Reduction 2 Item Schematics ----------------- None Robot Schematics ------------------ None Fabricated ------------ Nothing Repaired ---------- Nothing Alien Tech Used ----------------- None Achievements -------------- None Challenges ------------ None Game ------ Seed StealthTimingAutopenetrator Manual? 0 Play Time 00:41:27 Cumulative 320.2 hours Start 2025.09.06 @ 17:03:12 End 2025.09.06 @ 18:08:06 Sessions 1 Manual Loads 0 Difficulty Rogue Special Mode None Game No. 165 Rogue 165 Adventurer 0 Explorer 0 Win Type - Total 1 Types 0/0/0/0/1/0/0/0/0/0 Lore% 80 Gallery% 77 Achievement% 66 Wizard Run 0 Options --------- Layout 0 ASCII 0 Keyboard 0 Movement Mouse Keybinds 0 Fullscreen 1 Font 24/Smallcaps Map View 183x50 Zoom Use 0% Tactical HUD 1 Map Filters NONE Filters NONE Steam 0 RUN: 2467f305-189b-4ebf-a19f-cd4b47ec99b3